fUSD/lending_fUSD_20260221
["ID","MTS","AMOUNT","RATE_DAILY","PERIOD"]
[406291442,1771693844068,-500.41653761,0.00015173,2]
[406291443,1771693844077,-500.0,0.00015173,2]
[406291444,1771693844086,-500.0,0.00015173,2]
[406291445,1771693844096,-500.0,0.00015173,2]
[406291446,1771693844105,-500.13729869,0.00015173,2]
[406291447,1771693844114,-500.0,0.00015173,2]
[406291448,1771693844123,-500.0,0.00015173,2]
[406291449,1771693844132,-500.0,0.00015173,2]
[406291450,1771693844141,-448.37716465,0.00015173,2]
[406291451,1771693844153,-500.0,0.00015173,2]
[406291452,1771693844162,-500.0,0.00015173,2]
[406291453,1771693844171,-239.8459294,0.00015173,2]
[406291454,1771693844180,-500.0,0.00015173,2]
[406291455,1771693844189,-500.0,0.00015173,2]
[406291456,1771693844199,-500.0,0.00015173,2]
[406291457,1771693844208,-502.12798245,0.00015173,2]
[406291458,1771693844217,-500.0,0.00015173,2]
[406291459,1771693844227,-500.0,0.00015173,2]
[406291460,1771693844236,-500.0,0.00015173,2]
[406291461,1771693844245,-2351.0,0.00015218,2]
[406291462,1771693844255,-80621.7327408,0.00015542,2]
[406291463,1771693844264,-500.0,0.0001572,2]
[406291464,1771693844273,-500.0,0.0001572,2]
[406291465,1771693844283,-500.0,0.0001572,2]
[406291466,1771693844292,-500.0,0.0001572,2]
[406291467,1771693844301,-502.6970799,0.00015721,2]
[406291468,1771693844311,-507.18366532,0.00015721,2]
[406291469,1771693844320,-500.0,0.00015721,2]
[406291470,1771693844330,-1001.38512914,0.00015721,2]
[406291471,1771693844342,-503.83433081,0.00015721,2]
[406291472,1771693844354,-1000.0,0.00015721,2]
[406291473,1771693844363,-500.0,0.00015721,2]
[406291474,1771693844374,-490.85074003,0.00015721,2]
[406291475,1771693844383,-500.0,0.00015721,2]
[406291476,1771693844393,-500.0,0.00015721,2]
[406291477,1771693844407,-643.72920629,0.00015721,2]
[406291478,1771693844417,-501.52699276,0.00015721,2]
[406291479,1771693844427,-1000.0,0.00015721,2]
[406291480,1771693844436,-1000.0,0.00015721,2]
[406291481,1771693844446,-502.2822894,0.00015721,2]
[406291482,1771693844457,-686.93,0.00015882,2]
[406291483,1771693844467,-152.37105579,0.000159,2]
[406291484,1771693844478,-150.0,0.000159,2]
[406291485,1771693844487,-5000.0,0.0001596,2]
[406291486,1771693844497,-518.0,0.00016,2]
[406291487,1771693844506,-160.0,0.00016036,2]
[406291488,1771693844515,-173.74378417,0.00016036,2]
[406291489,1771693844524,-627.78,0.00016063,2]
[406291490,1771693844533,-500.0,0.00016082,2]
[406291491,1771693844543,-500.0,0.00016082,2]
[406291492,1771693844553,-576.69,0.00016082,2]
[406291493,1771693844563,-196.90981151,0.00016082,2]
[406291494,1771693844572,-500.0,0.00016082,2]
[406291495,1771693844581,-500.0,0.00016082,2]
[406291496,1771693844591,-17989.1401379,0.0001611,2]
[406291497,1771693844600,-7927.0,0.00016116,2]
[406291498,1771693844609,-736.0,0.00016149,2]
[406291499,1771693844619,-686.93,0.00016156,2]
[406291500,1771693844628,-15961.40503623,0.00016244,2]
[406291501,1771693844637,-1500.0,0.00016268,2]
[406291502,1771693844646,-350.90980006,0.00016268,2]
[406291503,1771693844655,-627.78,0.00016337,2]
[406291504,1771693844664,-250.0,0.00016405,2]
[406291505,1771693844674,-269.32,0.0001643,2]
[406291506,1771693844684,-151.83672145,0.00016438,2]
[406291507,1771693844693,-3120.71,0.00016438,2]
[406291508,1771693844703,-226.37,0.00016438,30]
[406291509,1771693844712,-353.14,0.00016611,2]
[406291510,1771693844721,-167.28,0.00016712,2]
[406291511,1771693844731,-1271.0,0.0001674,2]
[406291512,1771693844749,-500.0,0.00016761,2]
[406291513,1771693844759,-500.0,0.00016761,2]
[406291514,1771693844769,-190.72,0.00016761,2]
[406291515,1771693844778,-925.28,0.00016761,2]
[406291516,1771693844787,-925.28,0.00016761,2]
[406291517,1771693844796,-925.28,0.00016761,2]
[406291518,1771693844805,-925.28,0.00016761,2]
[406291519,1771693844814,-925.36707324,0.00016761,2]
[406291520,1771693844823,-893.73,0.00016761,2]
[406291521,1771693844833,-893.73,0.00016761,2]
[406291522,1771693844842,-893.73,0.00016761,2]
[406291523,1771693844852,-893.73,0.00016761,2]
[406291524,1771693844861,-893.75552873,0.00016761,2]
[406291525,1771693844870,-992.21,0.00016761,2]
[406291526,1771693844879,-992.21,0.00016761,2]
[406291527,1771693844888,-992.21,0.00016761,2]
[406291528,1771693844898,-992.21,0.00016761,2]
[406291529,1771693844907,-992.30885832,0.00016761,2]
[406291530,1771693844916,-165.24,0.00016816,2]
[406291531,1771693844925,-426.69637168,0.00017122,2]
[406291532,1771693844934,-1579.02,0.0001717,2]
[406291533,1771693844943,-1579.02,0.0001717,2]
[406291534,1771693844953,-1579.02,0.0001717,2]
[406291535,1771693844962,-1579.02,0.0001717,2]
[406291536,1771693844971,-1579.19676265,0.0001717,2]
[406291537,1771693844980,-399.29825785,0.00017416,3]
[406291538,1771693844990,-660.0,0.00017557,2]
[406291539,1771693845000,-548.81847798,0.00017808,2]
[406291540,1771693845010,-548.81847798,0.00017808,2]
[406291541,1771693845019,-548.81847798,0.00017808,2]
[406291542,1771693845028,-548.81847798,0.00017808,2]
[406291543,1771693845037,-548.81847798,0.00017808,2]
[406291544,1771693845046,-548.81847798,0.00017808,2]
[406291545,1771693845055,-548.81847798,0.00017808,2]
[406291546,1771693845064,-548.81847798,0.00017808,2]
[406291547,1771693845287,-548.81847798,0.00017808,2]
[406291548,1771693845300,-548.81847798,0.00017808,2]
[406291549,1771693845310,-548.81847798,0.00017808,2]
[406291550,1771693845319,-548.81847798,0.00017808,2]
[406291551,1771693845328,-548.81847798,0.00017808,2]
[406291552,1771693845338,-548.81847798,0.00017808,2]
[406291553,1771693845347,-1792.97961247,0.00017808,2]
[406291554,1771693845357,-1792.97961247,0.00017808,2]
[406291555,1771693845367,-1792.97961247,0.00017808,2]
[406291557,1771693845376,-1792.97961247,0.00017808,2]
[406291559,1771693845385,-1792.97961247,0.00017808,2]
[406291561,1771693845394,-1792.97961247,0.00017808,2]
[406291562,1771693845406,-1792.97961247,0.00017808,2]
[406291563,1771693845416,-1792.97961247,0.00017808,2]
[406291564,1771693845424,-1792.97961247,0.00017808,2]
[406291565,1771693845433,-1792.97961247,0.00017808,2]
[406291566,1771693845446,-1792.97961247,0.00017808,2]
[406291567,1771693845456,-500.0,0.00017808,2]
[406291568,1771693845465,-800.0,0.00017808,2]
[406291569,1771693845476,-500.0,0.00017863,2]
[406291570,1771693845485,-500.0,0.00017918,2]
[406291571,1771693845495,-200.0,0.00017937,2]
[406291572,1771693845504,-238.499555,0.00017955,7]
[406291573,1771693845513,-500.0,0.00017972,2]
[406291574,1771693845522,-867.0,0.00017993,2]
[406291575,1771693845532,-867.0,0.00018003,2]
[406291576,1771693845541,-867.0,0.00018128,2]
[406291577,1771693845550,-867.0,0.00018135,2]
[406291578,1771693845559,-867.0,0.00018145,2]
[406291579,1771693845568,-867.0,0.00018201,2]
[406291580,1771693845577,-867.0,0.00018405,2]
[406291581,1771693845586,-867.0,0.00018415,2]
[406291582,1771693845594,-164.16786887,0.0001854,2]
[406291583,1771693845603,-162.05016959,0.0001854,2]
[406291584,1771693845613,-500.0,0.0001854,2]
[406291585,1771693845622,-297.46778061,0.0001854,2]
[406291586,1771693845631,-500.0,0.0001854,2]
[406291587,1771693845643,-500.0,0.0001854,2]
[406291588,1771693845652,-500.0,0.0001854,2]
[406291589,1771693845661,-474.05379574,0.0001854,2]
[406291590,1771693845670,-500.0,0.0001854,2]
[406291591,1771693845679,-241.21989957,0.0001854,2]
[406291592,1771693845688,-867.0,0.00018605,2]
[406291593,1771693845699,-867.0,0.00018831,2]
[406291594,1771693845708,-867.0,0.00018872,2]
[406291595,1771693845717,-867.0,0.0001891,2]
[406291596,1771693845726,-867.0,0.00018993,2]
[406291597,1771693845735,-1000.0,0.00019,2]
[406291598,1771693845744,-867.0,0.00019064,2]
[406291599,1771693845753,-1000.0,0.00019088,2]
[406291600,1771693845762,-1000.0,0.00019088,2]
[406291601,1771693845771,-387.35182664,0.00019088,2]
[406291602,1771693845780,-1098.38505595,0.00019088,2]
[406291603,1771693845789,-1000.0,0.00019088,2]
[406291604,1771693845797,-867.0,0.00019097,2]
[406291605,1771693845806,-867.0,0.00019131,2]
[406291606,1771693845816,-867.0,0.00019146,2]
[406291607,1771693845826,-2346.81250728,0.00019152,2]
[406291608,1771693845837,-370.64791783,0.00019178,2]
[406291609,1771693845846,-150.0,0.00019178,2]
[406291610,1771693845855,-867.0,0.00019183,2]
[406291611,1771693845864,-867.0,0.00019354,2]
[406291612,1771693845874,-867.0,0.00019435,2]
[406291613,1771693845884,-867.0,0.00019439,2]
[406291614,1771693845893,-867.0,0.00019462,2]
[406291615,1771693845902,-867.0,0.00019517,2]
[406291616,1771693845911,-1014.03988287,0.00019636,2]
[406291617,1771693845920,-1500.0,0.00019636,2]
[406291618,1771693845929,-528.2508627,0.00019636,2]
[406291619,1771693845938,-867.0,0.00019647,2]
[406291620,1771693845947,-693.3919763,0.00019665,2]
[406291621,1771693845956,-721.12765535,0.00019665,2]
[406291622,1771693845965,-500.0,0.00019665,2]
[406291623,1771693845974,-500.0,0.00019665,2]
[406291624,1771693845984,-500.0,0.00019665,2]
[406291625,1771693845992,-500.0,0.00019665,2]
[406291626,1771693846002,-500.0,0.00019665,2]
[406291627,1771693846011,-500.0,0.00019665,2]
[406291628,1771693846020,-500.0,0.00019665,2]
[406291629,1771693846031,-500.0,0.00019665,2]
[406291630,1771693846041,-500.0,0.00019665,2]
[406291631,1771693846050,-500.0,0.00019665,2]
[406291632,1771693846059,-500.0,0.00019665,2]
[406291633,1771693846068,-719.04747942,0.0001972,2]
[406291634,1771693846077,-250.0,0.00019726,2]
[406291635,1771693846086,-745.65223616,0.00019775,2]
[406291636,1771693846095,-773.2413689,0.0001983,2]
[406291637,1771693846105,-15961.40503623,0.00019837,2]
[406291638,1771693846114,-867.0,0.00019867,2]
[406291639,1771693846123,-801.85129955,0.00019885,2]
[406291641,1771693846132,-831.51979763,0.0001994,2]
[406291642,1771693846141,-862.28603014,0.00019995,2]
[406291643,1771693846150,-894.19061326,0.0002005,2]
[406291644,1771693846160,-927.27566595,0.00020105,2]
[406291645,1771693846169,-150.0,0.00020116,2]
[406291646,1771693846178,-150.0,0.00020117,2]
[406291647,1771693846188,-200.542549,0.00020118,2]
[406291648,1771693846197,-961.58486559,0.0002016,2]
[406291649,1771693846207,-2000.0,0.00020184,2]
[406291650,1771693846216,-997.16350561,0.00020215,2]
[406291651,1771693846225,-265.93928549,0.00020274,2]
[406291652,1771693846234,-226.37,0.00020467,30]
[406291653,1771693846244,-155.69,0.00020548,2]
[406291654,1771693846253,-793.67865987,0.00020732,2]
[406291655,1771693846263,-426.69637168,0.00021765,2]
[406291656,1771693846273,-3045.01,0.00021918,2]
[406291657,1771693846283,-1307.259,0.00021918,2]
[406291658,1771693846292,-151.534,0.00021918,2]
[406291659,1771693846302,-168.47,0.00021985,14]
[406291660,1771693846312,-204.02,0.00022,7]
[406291661,1771693846322,-167.45,0.00022,2]
[406291662,1771693846332,-150.0,0.00022,14]
[406291663,1771693846341,-336.93,0.00022038,2]
[406291664,1771693846350,-432.65,0.00022047,2]
[406291665,1771693846360,-293.32,0.00022359,2]
[406291666,1771693846370,-518.0,0.000224,7]
[406291667,1771693846380,-747.8093786,0.00022404,2]
[406291668,1771693846390,-285.21304132,0.00022416,5]
[406291669,1771693846399,-168.47,0.00022476,2]
[406291670,1771693846413,-5401.03,0.00022579,2]
[406291671,1771693846423,-9715.47685359,0.000229,2]
[406291672,1771693846432,-1800.0,0.000229,8]
[406291673,1771693846442,-160.0,0.00023,2]
[406291674,1771693846453,-179.32545215,0.00023316,2]
[406291675,1771693846463,-7572.44,0.00023368,2]
[406291676,1771693846472,-15961.40503623,0.00023429,2]
[406291677,1771693846484,-168.47,0.00023557,2]
[406291678,1771693846494,-293.32,0.00023652,2]
[406291679,1771693846504,-556.498963,0.0002394,30]
[406291680,1771693846514,-500.0,0.00024173,2]
[406291681,1771693846524,-500.0,0.00024173,2]
[406291682,1771693846533,-576.69,0.00024173,2]
[406291683,1771693846543,-302.70166845,0.00024173,2]
[406291684,1771693846553,-500.0,0.00024173,2]
[406291685,1771693846562,-306.70242982,0.00024478,2]
[406291686,1771693846571,-226.37,0.00024496,30]
[406291687,1771693846582,-1229.63,0.00024658,2]
[406291688,1771693846592,-775.47832561,0.00025143,2]
[406291689,1771693846601,-204.02,0.000253,7]
[406291690,1771693846611,-167.45,0.00025847,7]
[406291691,1771693846620,-1000.0,0.0002622,30]
[406291692,1771693846629,-1000.0,0.0002622,30]
[406291693,1771693846639,-1000.0,0.0002622,30]
[406291694,1771693846648,-1000.0,0.0002622,30]
[406291695,1771693846657,-1000.0,0.0002622,30]
[406291696,1771693846666,-1000.0,0.0002622,30]
[406291697,1771693846676,-426.69637168,0.00026408,2]
[406291698,1771693846685,-173.74378417,0.00027,3]
[406291699,1771693846695,-173.74378417,0.00027,3]
[406291700,1771693846704,-15961.40503623,0.00027022,2]
[406291701,1771693846714,-3697.2,0.00027123,2]
[406291702,1771693846723,-9715.47685358,0.00027317,2]
[406291703,1771693846733,-150.0,0.00027369,2]
[406291704,1771693846743,-1229.63,0.00027397,2]
[406291705,1771693846754,-2000.0,0.00027568,2]
[406291706,1771693846763,-500.0,0.00027568,8]
[406291707,1771693846773,-500.0,0.00027568,8]
[406291708,1771693846782,-500.0,0.00027568,8]
[406291709,1771693846791,-500.0,0.00027568,8]
[406291710,1771693846801,-804.17102365,0.00027882,2]
[406291711,1771693846810,-432.65,0.00028023,2]
[406291712,1771693846820,-167.28,0.00028493,2]
[406291713,1771693846830,-226.37,0.00028525,30]
[406291714,1771693846839,-495.66285401,0.00028767,2]
[406291715,1771693846849,-1000.0,0.00028773,2]
[406291716,1771693846858,-518.0,0.000288,13]
[406291717,1771693846867,-167.45,0.00029695,30]
[406291718,1771693846877,-588.26358078,0.00030029,2]
[406291719,1771693846887,-1229.63,0.00030137,2]
[406291720,1771693846897,-2000.0,0.00030137,2]
[406291721,1771693846907,-187.02,0.000304,30]
[406291722,1771693846916,-15742.0,0.000306,2]
[406291723,1771693846926,-15961.40503623,0.00030614,2]
[406291724,1771693846936,-833.92535153,0.00030621,2]
[406291725,1771693846945,-2000.0,0.00030685,2]
[406291726,1771693846956,-3493.0,0.00030747,2]
[406291727,1771693846965,-618.0,0.00030747,2]
[406291728,1771693846975,-1175.519,0.00030747,2]
[406291729,1771693846985,-1276.0,0.00030747,2]
[406291730,1771693846995,-1209.0,0.00030747,2]
[406291731,1771693847004,-2453.0,0.00030757,2]
[406291732,1771693847014,-5976.0,0.00030757,2]
[406291733,1771693847023,-204.02,0.000309,7]
[406291734,1771693847033,-426.69637168,0.00031051,2]
[406291735,1771693847042,-5531.0,0.000312,3]
[406291736,1771693847052,-2000.0,0.00031233,2]
[406291737,1771693847061,-9715.47685358,0.00031734,2]
[406291738,1771693847071,-2000.0,0.00031781,2]
[406291739,1771693847080,-5531.0,0.000319,5]
[406291740,1771693847090,-2000.0,0.00032329,2]
[406291741,1771693847099,-226.37,0.00032554,30]
[406291742,1771693847109,-2033.0,0.00032658,5]
[406291743,1771693847118,-2000.0,0.000327,2]
[406291744,1771693847128,-1229.63,0.00032877,2]
[406291745,1771693847138,-500.0,0.00032877,2]
[406291746,1771693847148,-500.0,0.00032877,2]
[406291747,1771693847158,-500.0,0.00032877,2]
[406291748,1771693847167,-500.0,0.00032877,2]
[406291749,1771693847177,-500.0,0.00032877,2]
[406291750,1771693847186,-500.0,0.00032877,2]
[406291751,1771693847197,-372.10875522,0.00032877,2]
[406291752,1771693847206,-2000.0,0.00032877,2]
[406291753,1771693847216,-154.64,0.000329,14]
[406291754,1771693847226,-154.64,0.000329,14]
[406291755,1771693847235,-864.78058953,0.0003336,2]
[406291756,1771693847245,-2023.95858652,0.00033425,2]
[406291757,1771693847254,-167.45,0.00033542,30]
[406291758,1771693847264,-3493.0,0.00033747,2]
[406291759,1771693847274,-618.0,0.00033747,2]
[406291760,1771693847283,-1039.0,0.00033747,2]
[406291761,1771693847293,-1276.0,0.00033747,2]
[406291762,1771693847304,-1209.0,0.00033747,2]
[406291763,1771693847314,-2453.0,0.00033757,2]
[406291764,1771693847323,-5401.03,0.00033924,2]
[406291765,1771693847332,-150.0,0.00033998,2]
[406291766,1771693847342,-173.628,0.00033998,2]
[406291767,1771693847351,-150.135,0.00033998,2]
[406291768,1771693847361,-150.153,0.00033998,2]
[406291769,1771693847370,-150.068,0.00033998,2]
[406291770,1771693847379,-267.735,0.00033998,2]
[406291771,1771693847388,-150.41,0.00034,14]
[406291772,1771693847397,-179.32545215,0.00034153,2]
[406291773,1771693847411,-15961.40503623,0.00034207,2]
[406291774,1771693847420,-1500.0,0.00034795,2]
[406291775,1771693847429,-240.36,0.00034845,2]
[406291776,1771693847438,-179.29,0.00034868,7]
[406291777,1771693847448,-179.29,0.00034868,7]
[406291778,1771693847458,-179.28,0.00034868,7]
[406291779,1771693847467,-1000.0,0.00035084,2]
[406291780,1771693847480,-1000.0,0.00035084,2]
[406291781,1771693847489,-1000.0,0.00035084,2]
[406291782,1771693847499,-1000.0,0.00035084,2]
[406291783,1771693847509,-1000.0,0.00035084,2]
[406291784,1771693847518,-1796.0,0.00035146,120]
[406291785,1771693847527,-752.0,0.00035146,120]
[406291786,1771693847536,-654.0,0.00035146,120]
[406291787,1771693847545,-518.0,0.000352,19]
[406291788,1771693847555,-154.64,0.000352,14]
[406291789,1771693847564,-154.64,0.000352,14]
[406291790,1771693847572,-179.29,0.00035416,7]
[406291791,1771693847581,-179.29,0.00035416,7]
[406291792,1771693847591,-179.28,0.00035416,7]
[406291793,1771693847599,-233.95598063,0.00035589,120]
[406291794,1771693847609,-253.00517092,0.00035616,7]
[406291795,1771693847618,-1229.63,0.00035616,2]
[406291796,1771693847627,-240.36,0.00035692,2]
[406291797,1771693847637,-426.69637168,0.00035694,2]
[406291798,1771693847646,-204.02,0.000358,14]
[406291799,1771693847655,-179.29,0.00035963,7]
[406291800,1771693847664,-179.29,0.00035963,7]
[406291801,1771693847673,-179.28,0.00035963,7]
[406291802,1771693847682,-213.34036282,0.00036099,2]
[406291803,1771693847691,-9715.47685358,0.0003615,2]
[406291804,1771693847701,-2000.0,0.000364,2]
[406291805,1771693847709,-240.36,0.0003654,2]
[406291806,1771693847718,-226.37,0.00036583,30]
[406291807,1771693847727,-3493.0,0.00036747,2]
[406291808,1771693847735,-618.0,0.00036747,2]
[406291809,1771693847744,-1276.0,0.00036747,2]
[406291810,1771693847753,-1209.0,0.00036747,2]
[406291811,1771693847762,-2453.0,0.00036757,2]
[406291812,1771693847771,-154.64,0.000368,14]
[406291813,1771693847780,-154.64,0.000368,14]
[406291814,1771693847789,-150.0,0.00036998,2]
[406291815,1771693847798,-179.28,0.00037333,7]
[406291816,1771693847808,-179.28,0.00037333,7]
[406291817,1771693847817,-179.29,0.00037333,7]
[406291818,1771693847826,-167.45,0.00037389,60]
[406291819,1771693847835,-15961.40503623,0.00037799,2]
[406291820,1771693847844,-150.41,0.000378,14]
[406291821,1771693847853,-20032.6819788,0.000382,2]
[406291822,1771693847862,-341.34905961,0.00038636,2]
[406291823,1771693847871,-204.02,0.000389,14]
[406291824,1771693847880,-416.0,0.00038938,30]
[406291825,1771693847889,-329.0,0.00038938,30]
[406291826,1771693847899,-3493.0,0.00039747,2]
[406291827,1771693847908,-618.0,0.00039747,2]
[406291828,1771693847917,-1274.0,0.00039747,2]
[406291829,1771693847926,-1209.0,0.00039747,2]
[406291830,1771693847935,-2453.0,0.00039757,2]
[406291831,1771693847944,-165.35137372,0.0004,12]
[406291832,1771693847953,-152.82,0.0004,2]
[406291833,1771693847962,-152.82,0.0004,2]
[406291834,1771693847971,-152.82,0.0004,2]
[406291835,1771693847981,-152.82,0.0004,2]
[406291836,1771693847990,-152.82,0.0004,2]
[406291837,1771693847999,-152.82,0.0004,2]
[406291838,1771693848008,-152.82,0.0004,2]
[406291839,1771693848017,-152.82,0.0004,2]
[406291840,1771693848027,-152.82,0.0004,2]
[406291841,1771693848036,-152.82,0.0004,2]
[406291842,1771693848045,-152.82,0.0004,2]
[406291843,1771693848054,-152.82,0.0004,2]
[406291844,1771693848063,-152.82,0.0004,2]
[406291845,1771693848072,-152.82,0.0004,2]
[406291846,1771693848081,-152.82,0.0004,2]
[406291847,1771693848090,-152.82,0.0004,2]
[406291848,1771693848099,-152.82,0.0004,2]
[406291849,1771693848108,-152.82,0.0004,2]
[406291850,1771693848117,-152.82,0.0004,2]
[406291851,1771693848126,-152.82,0.0004,2]
[406291852,1771693848135,-152.82,0.0004,2]
[406291853,1771693848144,-152.82,0.0004,2]
[406291854,1771693848153,-152.82,0.0004,2]
[406291855,1771693848162,-152.82,0.0004,2]
[406291856,1771693848172,-152.82,0.0004,2]
[406291857,1771693848181,-152.82,0.0004,2]
[406291858,1771693848190,-152.82,0.0004,2]
[406291859,1771693848199,-152.82,0.0004,2]
[406291860,1771693848208,-152.82,0.0004,2]
[406291861,1771693848217,-152.82,0.0004,2]
[406291862,1771693848226,-152.82,0.0004,2]
[406291863,1771693848365,-152.82,0.0004,2]
[406291864,1771693848374,-1000.0,0.000401,2]
[406291865,1771693848384,-6562.6947821,0.00040268,5]
[406291866,1771693848393,-154.64,0.000403,14]
[406291867,1771693848403,-154.64,0.000403,14]
[406291868,1771693848414,-426.69637168,0.00040337,28]
[406291869,1771693848423,-300.0,0.00040558,2]
[406291870,1771693848432,-855.46737255,0.00040558,2]
[406291871,1771693848441,-884.25866852,0.00040558,2]
[406291872,1771693848452,-1562.58795981,0.00040558,2]
[406291873,1771693848462,-300.0,0.00040558,2]
[406291874,1771693848471,-300.0,0.00040558,2]
[406291875,1771693848483,-300.0,0.00040558,2]
[406291876,1771693848492,-307.19972653,0.00040558,2]
[406291877,1771693848501,-300.0,0.00040558,2]
[406291878,1771693848511,-300.0,0.00040558,2]
[406291879,1771693848520,-458.66921193,0.00040558,2]
[406291880,1771693848529,-300.0,0.00040558,2]
[406291881,1771693848538,-300.0,0.00040558,2]
[406291882,1771693848547,-300.0,0.00040558,2]
[406291883,1771693848556,-300.0,0.00040558,2]
[406291884,1771693848565,-371.30350818,0.00040558,2]
[406291885,1771693848574,-300.0,0.00040558,2]
[406291886,1771693848583,-300.0,0.00040558,2]
[406291887,1771693848592,-300.0,0.00040558,2]
[406291888,1771693848601,-300.0,0.00040558,2]
[406291889,1771693848610,-300.0,0.00040558,2]
[406291890,1771693848619,-300.0,0.00040558,2]
[406291891,1771693848628,-9715.47685358,0.00040567,2]
[406291892,1771693848637,-300.0,0.00040594,2]
[406291893,1771693848646,-855.46737255,0.00040594,2]
[406291894,1771693848656,-884.25866852,0.00040594,2]
[406291895,1771693848665,-1562.58795981,0.00040594,2]
[406291896,1771693848674,-307.19972653,0.00040594,2]
[406291897,1771693848683,-458.66921193,0.00040594,2]
[406291898,1771693848692,-300.0,0.00040594,2]
[406291899,1771693848701,-300.0,0.00040594,2]
[406291900,1771693848710,-371.30350818,0.00040594,2]
[406291901,1771693848719,-514.91480419,0.00040594,2]
[406291902,1771693848729,-518.44464902,0.00040594,2]
[406291903,1771693848738,-306.15563292,0.00040594,2]
[406291904,1771693848746,-300.0,0.00040594,2]
[406291905,1771693848757,-1081.79077738,0.00040594,2]
[406291906,1771693848766,-300.0,0.00040594,2]
[406291907,1771693848775,-508.4666148,0.00040594,2]
[406291908,1771693848784,-226.37,0.00040612,30]
[406291909,1771693848793,-200.0,0.00040938,2]
[406291910,1771693848802,-70403.0,0.0004095,60]
[406291911,1771693848811,-987.4739995,0.00041,2]
[406291912,1771693848821,-282.41570076,0.00041039,2]
[406291913,1771693848830,-842.0,0.00041096,120]
[406291914,1771693848839,-732.0,0.00041096,30]
[406291915,1771693848848,-1298.34014328,0.00041096,7]
[406291916,1771693848857,-200.0,0.00041096,7]
[406291917,1771693848866,-155.90164677,0.00041096,14]
[406291918,1771693848875,-151.0,0.00041096,14]
[406291919,1771693848884,-151.0,0.00041096,14]
[406291920,1771693848893,-151.0,0.00041096,14]
[406291921,1771693848902,-151.0,0.00041096,14]
[406291922,1771693848911,-296.0,0.00041096,14]
[406291923,1771693848920,-331.31,0.00041184,2]
[406291924,1771693848929,-167.45,0.00041237,60]
[406291925,1771693848939,-152.0,0.000413,120]
[406291926,1771693848948,-500.0,0.00041377,120]
[406291927,1771693848957,-500.0,0.00041377,120]
[406291928,1771693848966,-500.0,0.00041377,120]
[406291929,1771693848976,-500.0,0.00041377,30]
[406291930,1771693848985,-576.69,0.00041377,120]
[406291931,1771693848994,-500.0,0.00041377,30]
[406291932,1771693849003,-500.0,0.00041377,30]
[406291933,1771693849012,-500.0,0.00041377,120]
[406291934,1771693849021,-15961.40503623,0.00041392,15]
[406291935,1771693849029,-250.0,0.000414,120]
[406291936,1771693849038,-204.02,0.000414,14]
[406291937,1771693849047,-2794.66739542,0.00041414,120]
[406291938,1771693849056,-200.0,0.00041507,7]
[406291939,1771693849065,-2601.0,0.00041562,120]
[406291940,1771693849075,-518.0,0.000416,25]
[406291941,1771693849085,-842.0,0.00041644,120]
[406291942,1771693849094,-331.31,0.00041646,2]
[406291943,1771693849103,-187.02,0.000417,30]
[406291944,1771693849112,-151.42,0.00041747,2]
[406291945,1771693849120,-500.0,0.00041771,120]